[Event "*** Titled Tuesday Blitz"]
[Site "Chess.com"]
[Date "2021.04.20"]
[Round "1"]
[White "GracefulYear"]
[Black "TheRealPeakyBlinder"]
[Result "0-1"]
[WhiteElo "2346"]
[BlackElo "2656"]
[TimeControl "180+1"]
[EndTime "10:07:26 PDT"]
[Termination "TheRealPeakyBlinder won by checkmate"]

1. d4 {[%clk 0:02:58.7]} 1... e6 {[%clk 0:02:57.7]} 2. c4 {[%clk 0:02:40.4]}
2... f5 {[%clk 0:02:55.9]} 3. Nc3 {[%clk 0:02:39.3]} 3... Nf6 {[%clk 0:02:55.2]}
4. Nf3 {[%clk 0:02:38.3]} 4... Be7 {[%clk 0:02:50.9]} 5. e3 {[%clk 0:02:37.7]}
5... O-O {[%clk 0:02:49.2]} 6. Be2 {[%clk 0:02:24.3]} 6... b6 {[%clk 0:02:48.3]}
7. O-O {[%clk 0:02:23.9]} 7... Bb7 {[%clk 0:02:47.7]} 8. b3 {[%clk 0:02:22.8]}
8... Qe8 {[%clk 0:02:45.7]} 9. Bb2 {[%clk 0:02:20.2]} 9... d6 {[%clk 0:02:41.7]}
10. Rc1 {[%clk 0:02:14.5]} 10... Nbd7 {[%clk 0:02:36.7]} 11. Nb5 {[%clk
0:02:13.6]} 11... Bd8 {[%clk 0:02:36.3]} 12. b4 {[%clk 0:02:11.2]} 12... Ne4
{[%clk 0:02:34]} 13. Qb3 {[%clk 0:02:07.5]} 13... Qg6 {[%clk 0:02:17.2]} 14.
Rfd1 {[%clk 0:02:01.4]} 14... a5 {[%clk 0:01:54.4]} 15. a3 {[%clk 0:01:56.3]}
15... axb4 {[%clk 0:01:52.8]} 16. axb4 {[%clk 0:01:55.6]} 16... Ndf6 {[%clk
0:01:43.7]} 17. c5 {[%clk 0:01:53.9]} 17... Bd5 {[%clk 0:01:35]} 18. Bc4 {[%clk
0:01:50.1]} 18... Nxc5 {[%clk 0:01:04.6]} 19. dxc5 {[%clk 0:01:43.1]} 19... Bxf3
{[%clk 0:01:04.8]} 20. Bxe6+ {[%clk 0:01:41.7]} 20... Kh8 {[%clk 0:01:05.5]} 21.
g3 {[%clk 0:01:37.4]} 21... Qh5 {[%clk 0:01:02.9]} 22. Nd4 {[%clk 0:01:21.6]}
22... Bxd1 {[%clk 0:01:03]} 23. Qxd1 {[%clk 0:01:21.4]} 23... Qxd1+ {[%clk
0:00:55.6]} 24. Rxd1 {[%clk 0:01:22.3]} 24... bxc5 {[%clk 0:00:45.6]} 25. bxc5
{[%clk 0:01:21.5]} 25... Ng4 {[%clk 0:00:31.7]} 26. Nxf5 {[%clk 0:01:06.7]}
26... Bf6 {[%clk 0:00:31.6]} 27. Bxf6 {[%clk 0:00:57.1]} 27... Rxf6 {[%clk
0:00:27]} 28. Nxg7 {[%clk 0:00:46.4]} 28... Nxf2 {[%clk 0:00:23.7]} 29. Rf1
{[%clk 0:00:29.5]} 29... Kxg7 {[%clk 0:00:17.3]} 30. Bd5 {[%clk 0:00:29.1]}
30... Nh3+ {[%clk 0:00:17.1]} 31. Kg2 {[%clk 0:00:28.3]} 31... Rxf1 {[%clk
0:00:13.3]} 32. Bxa8 {[%clk 0:00:16.4]} 32... Ra1 {[%clk 0:00:13.5]} 33. Bd5
{[%clk 0:00:14.9]} 33... Ng5 {[%clk 0:00:13.6]} 34. h4 {[%clk 0:00:15.1]} 34...
Nf7 {[%clk 0:00:13.7]} 35. cxd6 {[%clk 0:00:14.6]} 35... cxd6 {[%clk 0:00:13.8]}
36. e4 {[%clk 0:00:15]} 36... Ne5 {[%clk 0:00:13.9]} 37. Kh3 {[%clk 0:00:13.2]}
37... h5 {[%clk 0:00:13.7]} 38. Kg2 {[%clk 0:00:13.1]} 38... Rc1 {[%clk
0:00:13.7]} 39. Kf2 {[%clk 0:00:12.6]} 39... Kf6 {[%clk 0:00:13.5]} 40. Ke3
{[%clk 0:00:12.5]} 40... Rc3+ {[%clk 0:00:10.9]} 41. Kf4 {[%clk 0:00:11.8]}
41... Rf3# {[%clk 0:00:11]} 0-1

[Event "*** Titled Tuesday Blitz"]
[Site "Chess.com"]
[Date "2021.04.20"]
[Round "1"]
[White "eljanov"]
[Black "Superfelix"]
[Result "1-0"]
[WhiteElo "2877"]
[BlackElo "2454"]
[TimeControl "180+1"]
[EndTime "10:07:28 PDT"]
[Termination "eljanov won by resignation"]

1. d4 {[%clk 0:03:00.7]} 1... g6 {[%clk 0:02:59.4]} 2. e4 {[%clk 0:02:58.2]}
2... c6 {[%clk 0:02:59.1]} 3. c3 {[%clk 0:02:53.1]} 3... d5 {[%clk 0:02:59.5]}
4. e5 {[%clk 0:02:52.9]} 4... h5 {[%clk 0:02:59.8]} 5. Nf3 {[%clk 0:02:41]} 5...
Nh6 {[%clk 0:02:59.3]} 6. Be2 {[%clk 0:02:39.1]} 6... Bg4 {[%clk 0:02:57.6]} 7.
Nbd2 {[%clk 0:02:38.6]} 7... e6 {[%clk 0:02:53.9]} 8. h3 {[%clk 0:02:38.5]} 8...
Bxf3 {[%clk 0:02:54.1]} 9. Nxf3 {[%clk 0:02:39.4]} 9... Nf5 {[%clk 0:02:54.3]}
10. Bd3 {[%clk 0:02:35.4]} 10... Nd7 {[%clk 0:02:53.4]} 11. O-O {[%clk
0:02:33.7]} 11... Be7 {[%clk 0:02:53.6]} 12. b4 {[%clk 0:02:27.6]} 12... a5
{[%clk 0:02:51.7]} 13. b5 {[%clk 0:02:27.9]} 13... c5 {[%clk 0:02:51.3]} 14. a4
{[%clk 0:02:23.9]} 14... c4 {[%clk 0:02:49.2]} 15. Bc2 {[%clk 0:02:17.6]} 15...
b6 {[%clk 0:02:35.1]} 16. g3 {[%clk 0:02:15]} 16... Nf8 {[%clk 0:02:25]} 17. Kg2
{[%clk 0:02:14.9]} 17... Nh7 {[%clk 0:02:20.8]} 18. Rh1 {[%clk 0:02:10.1]} 18...
Ng5 {[%clk 0:02:17.7]} 19. Ng1 {[%clk 0:02:04.4]} 19... Nh7 {[%clk 0:02:09.1]}
20. f4 {[%clk 0:02:01.3]} 20... g5 {[%clk 0:01:54.6]} 21. Bxf5 {[%clk
0:02:00.1]} 21... exf5 {[%clk 0:01:54.4]} 22. Qxh5 {[%clk 0:01:49.5]} 22... Qd7
{[%clk 0:01:54.4]} 23. Qh6 {[%clk 0:01:34.6]} 23... gxf4 {[%clk 0:01:49.5]} 24.
Bxf4 {[%clk 0:01:34.2]} 24... Qe6 {[%clk 0:01:37.3]} 25. Nf3 {[%clk 0:01:30.2]}
25... O-O-O {[%clk 0:01:31.7]} 26. Qxe6+ {[%clk 0:01:21.3]} 26... fxe6 {[%clk
0:01:31.4]} 27. Rag1 {[%clk 0:01:21.9]} 27... Rdg8 {[%clk 0:01:30.3]} 28. Kf2
{[%clk 0:01:21.7]} 28... Ng5 {[%clk 0:01:14.8]} 29. Bxg5 {[%clk 0:01:21.8]}
29... Bxg5 {[%clk 0:01:15.1]} 30. g4 {[%clk 0:01:22.7]} 30... fxg4 {[%clk
0:00:57]} 31. Rxg4 {[%clk 0:01:22.1]} 31... Be7 {[%clk 0:00:52.8]} 32. Rxg8+
{[%clk 0:01:19]} 32... Rxg8 {[%clk 0:00:52.8]} 33. h4 {[%clk 0:01:19.5]} 33...
Rh8 {[%clk 0:00:45.7]} 34. h5 {[%clk 0:01:13.2]} 34... Rh6 {[%clk 0:00:45]} 35.
Kg3 {[%clk 0:01:10]} 35... Kd7 {[%clk 0:00:44.7]} 36. Kg4 {[%clk 0:01:10.3]}
36... Ke8 {[%clk 0:00:44.1]} 37. Ng5 {[%clk 0:01:09.8]} 37... Kd7 {[%clk
0:00:32.1]} 38. Rf1 {[%clk 0:01:08.9]} 38... Rh8 {[%clk 0:00:26.4]} 39. Rf7
{[%clk 0:00:45.5]} 39... Rg8 {[%clk 0:00:25.8]} 40. Kf4 {[%clk 0:00:45.6]} 40...
Ke8 {[%clk 0:00:24.5]} 41. Rf6 {[%clk 0:00:45.3]} 41... Bxf6 {[%clk 0:00:22.8]}
42. exf6 {[%clk 0:00:45.5]} 42... Rh8 {[%clk 0:00:18.9]} 43. Kg4 {[%clk
0:00:36.8]} 43... Kd7 {[%clk 0:00:18.7]} 44. Nf7 {[%clk 0:00:35.3]} 44... Rg8+
{[%clk 0:00:16.5]} 45. Kf4 {[%clk 0:00:35.7]} 45... Rf8 {[%clk 0:00:16.5]} 46.
Ne5+ {[%clk 0:00:35.6]} 46... Kd6 {[%clk 0:00:16.4]} 47. f7 {[%clk 0:00:33.2]}
47... Rh8 {[%clk 0:00:09.6]} 48. Kg5 {[%clk 0:00:32.8]} 48... Ke7 {[%clk
0:00:09.1]} 49. Ng6+ {[%clk 0:00:31.7]} 49... Kxf7 {[%clk 0:00:08.6]} 50. Nxh8+
{[%clk 0:00:32.1]} 50... Kg7 {[%clk 0:00:09.2]} 51. h6+ {[%clk 0:00:32.4]} 1-0

[Event "*** Titled Tuesday Blitz"]
[Site "Chess.com"]
[Date "2021.04.20"]
[Round "1"]
[White "aljado"]
[Black "4empechement"]
[Result "0-1"]
[WhiteElo "2055"]
[BlackElo "2492"]
[TimeControl "180+1"]
[EndTime "10:07:29 PDT"]
[Termination "4empechement won on time"]

1. e4 {[%clk 0:03:00.1]} 1... c6 {[%clk 0:02:59.2]} 2. d4 {[%clk 0:02:59.6]}
2... d5 {[%clk 0:02:58.8]} 3. Nc3 {[%clk 0:03:00.1]} 3... dxe4 {[%clk
0:02:58.3]} 4. f3 {[%clk 0:03:00.6]} 4... exf3 {[%clk 0:02:46.1]} 5. Nxf3 {[%clk
0:02:58.9]} 5... Bf5 {[%clk 0:02:43.4]} 6. Bc4 {[%clk 0:02:58.1]} 6... e6 {[%clk
0:02:38.6]} 7. O-O {[%clk 0:02:58.1]} 7... Nf6 {[%clk 0:02:33.9]} 8. Ng5 {[%clk
0:02:57]} 8... Bg6 {[%clk 0:02:29.7]} 9. Be3 {[%clk 0:02:50.4]} 9... h6 {[%clk
0:02:17.8]} 10. Nf3 {[%clk 0:02:43.9]} 10... Nbd7 {[%clk 0:02:12.3]} 11. Qe2
{[%clk 0:02:36.5]} 11... Bd6 {[%clk 0:02:04.8]} 12. Rad1 {[%clk 0:02:34.1]}
12... Qc7 {[%clk 0:02:01.2]} 13. h3 {[%clk 0:02:30.9]} 13... O-O {[%clk
0:01:34.3]} 14. Bb3 {[%clk 0:02:26.8]} 14... Rae8 {[%clk 0:01:33.7]} 15. Nh4
{[%clk 0:02:18.2]} 15... Bh7 {[%clk 0:01:32.8]} 16. Qd2 {[%clk 0:01:51.4]} 16...
e5 {[%clk 0:01:06.2]} 17. d5 {[%clk 0:01:45.2]} 17... e4 {[%clk 0:00:52.4]} 18.
dxc6 {[%clk 0:01:37.6]} 18... Bh2+ {[%clk 0:00:51.6]} 19. Kh1 {[%clk 0:01:35.6]}
19... bxc6 {[%clk 0:00:50.5]} 20. Nf5 {[%clk 0:01:14.9]} 20... Bxf5 {[%clk
0:00:45.7]} 21. Rxf5 {[%clk 0:01:14.1]} 21... Re5 {[%clk 0:00:35.6]} 22. Rdf1
{[%clk 0:01:02.2]} 22... Rxf5 {[%clk 0:00:28.1]} 23. Rxf5 {[%clk 0:01:01.6]}
23... Kh7 {[%clk 0:00:28.5]} 24. Qd4 {[%clk 0:00:28.7]} 24... a6 {[%clk
0:00:19.5]} 25. Nxe4 {[%clk 0:00:24.7]} 25... Be5 {[%clk 0:00:18.9]} 26. Nxf6+
{[%clk 0:00:22.4]} 26... Nxf6 {[%clk 0:00:19.8]} 27. Qd3 {[%clk 0:00:21.4]}
27... Kg8 {[%clk 0:00:19.1]} 28. c3 {[%clk 0:00:18.3]} 28... Rd8 {[%clk
0:00:18.6]} 29. Qe2 {[%clk 0:00:17.6]} 29... Bg3 {[%clk 0:00:18.6]} 30. Qf3
{[%clk 0:00:16]} 30... Qd6 {[%clk 0:00:18.3]} 31. Bxh6 {[%clk 0:00:13.1]} 31...
Ne4 {[%clk 0:00:11.5]} 32. Rxf7 {[%clk 0:00:09.6]} 32... Nf2+ {[%clk 0:00:09.1]}
33. Qxf2 {[%clk 0:00:07.3]} 33... Bxf2 {[%clk 0:00:09]} 34. Rd7+ {[%clk
0:00:04.6]} 34... Kh7 {[%clk 0:00:08.8]} 35. Rxd6 {[%clk 0:00:04.3]} 35... Rxd6
{[%clk 0:00:09.7]} 36. Bf4 {[%clk 0:00:02.4]} 36... Rf6 {[%clk 0:00:09.1]} 0-1

[Event "*** Titled Tuesday Blitz"]
[Site "Chess.com"]
[Date "2021.04.20"]
[Round "1"]
[White "superchess02"]
[Black "KubaGepard"]
[Result "1-0"]
[WhiteElo "2734"]
[BlackElo "2407"]
[TimeControl "180+1"]
[EndTime "10:07:30 PDT"]
[Termination "superchess02 won by resignation"]

1. d4 {[%clk 0:03:00.9]} 1... d5 {[%clk 0:02:59.7]} 2. f4 {[%clk 0:03:00.6]}
2... Bf5 {[%clk 0:02:57]} 3. Nf3 {[%clk 0:03:00.8]} 3... e6 {[%clk 0:02:56.4]}
4. e3 {[%clk 0:03:01.1]} 4... Bd6 {[%clk 0:02:48.9]} 5. Bd3 {[%clk 0:03:00.9]}
5... Ne7 {[%clk 0:02:47.5]} 6. O-O {[%clk 0:02:59.6]} 6... O-O {[%clk
0:02:46.2]} 7. c4 {[%clk 0:02:58.2]} 7... c6 {[%clk 0:02:24.9]} 8. Nc3 {[%clk
0:02:56.5]} 8... Nd7 {[%clk 0:02:22.4]} 9. e4 {[%clk 0:02:39]} 9... dxe4 {[%clk
0:02:22.1]} 10. Nxe4 {[%clk 0:02:38.7]} 10... Bc7 {[%clk 0:02:16.8]} 11. Qc2
{[%clk 0:02:37]} 11... Bb6 {[%clk 0:01:58.9]} 12. Be3 {[%clk 0:02:35.1]} 12...
Rc8 {[%clk 0:01:53.7]} 13. Rad1 {[%clk 0:02:33.9]} 13... Qc7 {[%clk 0:01:38.7]}
14. a3 {[%clk 0:02:33.7]} 14... c5 {[%clk 0:01:32.8]} 15. b4 {[%clk 0:02:11.3]}
15... cxd4 {[%clk 0:01:30]} 16. Nxd4 {[%clk 0:02:12.2]} 16... Nd5 {[%clk
0:01:11.6]} 17. cxd5 {[%clk 0:01:51.5]} 17... Bxd4 {[%clk 0:01:10.2]} 18. Bxd4
{[%clk 0:01:52]} 18... Qxc2 {[%clk 0:01:08.9]} 19. Bxc2 {[%clk 0:01:52.9]} 19...
Rxc2 {[%clk 0:01:08.3]} 20. Nd6 {[%clk 0:01:53.5]} 20... Bg4 {[%clk 0:01:01.4]}
21. Rc1 {[%clk 0:01:44.6]} 21... Rd2 {[%clk 0:00:57.5]} 22. Bxa7 {[%clk
0:01:39.4]} 22... Rxd5 {[%clk 0:00:57.5]} 23. Nxb7 {[%clk 0:01:39.4]} 23... Ra8
{[%clk 0:00:51.1]} 24. Bf2 {[%clk 0:01:35.2]} 24... h5 {[%clk 0:00:44.8]} 25.
Na5 {[%clk 0:01:25.5]} 25... Nf6 {[%clk 0:00:42.9]} 26. h3 {[%clk 0:01:19.2]}
26... Bf5 {[%clk 0:00:37.4]} 27. Rfd1 {[%clk 0:01:19.3]} 27... Be4 {[%clk
0:00:34.8]} 28. Bd4 {[%clk 0:01:11.4]} 28... Rad8 {[%clk 0:00:29.9]} 29. Nc6
{[%clk 0:00:52.1]} 29... R8d7 {[%clk 0:00:30]} 30. Kf2 {[%clk 0:00:50.5]} 30...
Ne8 {[%clk 0:00:22.2]} 31. Re1 {[%clk 0:00:40.1]} 31... f5 {[%clk 0:00:19.2]}
32. Bc5 {[%clk 0:00:35.7]} 32... Rd2+ {[%clk 0:00:18.5]} 33. Re2 {[%clk
0:00:35.7]} 33... Rxe2+ {[%clk 0:00:18.8]} 34. Kxe2 {[%clk 0:00:36.6]} 34...
Bxg2 {[%clk 0:00:19.2]} 35. Ne5 {[%clk 0:00:35.1]} 35... Rd5 {[%clk 0:00:19.3]}
36. b5 {[%clk 0:00:32.5]} 36... Nf6 {[%clk 0:00:17.8]} 37. b6 {[%clk 0:00:31.7]}
37... Ne4 {[%clk 0:00:18.4]} 38. b7 {[%clk 0:00:28.8]} 38... Rd2+ {[%clk
0:00:18.3]} 39. Ke3 {[%clk 0:00:27.9]} 39... Rb2 {[%clk 0:00:18.4]} 40. Bb4
{[%clk 0:00:26.7]} 40... Kh7 {[%clk 0:00:13.9]} 41. b8=Q {[%clk 0:00:26.1]}
41... Rb3+ {[%clk 0:00:14]} 42. Kd4 {[%clk 0:00:26.3]} 42... Nf2 {[%clk
0:00:10.3]} 43. Qe8 {[%clk 0:00:23.2]} 43... Bb7 {[%clk 0:00:05.3]} 44. Qxh5+
{[%clk 0:00:22.5]} 44... Kg8 {[%clk 0:00:05.4]} 45. Qf7+ {[%clk 0:00:23]} 45...
Kh7 {[%clk 0:00:05.5]} 46. Qxb7 {[%clk 0:00:23.6]} 1-0

[Event "*** Titled Tuesday Blitz"]
[Site "Chess.com"]
[Date "2021.04.20"]
[Round "1"]
[White "ural58"]
[Black "jannat65"]
[Result "0-1"]
[WhiteElo "2465"]
[BlackElo "2025"]
[TimeControl "180+1"]
[EndTime "10:07:32 PDT"]
[Termination "jannat65 won on time"]

1. e4 {[%clk 0:02:50.7]} 1... c6 {[%clk 0:03:00]} 2. Nc3 {[%clk 0:02:49.2]} 2...
d5 {[%clk 0:02:59.5]} 3. Nf3 {[%clk 0:02:49.1]} 3... dxe4 {[%clk 0:02:58.2]} 4.
Nxe4 {[%clk 0:02:48.3]} 4... Bg4 {[%clk 0:02:58.7]} 5. h3 {[%clk 0:02:44.4]}
5... Bxf3 {[%clk 0:02:56.4]} 6. Qxf3 {[%clk 0:02:43.9]} 6... e6 {[%clk
0:02:55.6]} 7. Bc4 {[%clk 0:02:26.7]} 7... Nd7 {[%clk 0:02:54.7]} 8. d4 {[%clk
0:02:25.5]} 8... Ngf6 {[%clk 0:02:53.8]} 9. Bf4 {[%clk 0:02:17.5]} 9... Nxe4
{[%clk 0:02:49.6]} 10. Qxe4 {[%clk 0:02:16.8]} 10... Nf6 {[%clk 0:02:50.1]} 11.
Qd3 {[%clk 0:02:11.1]} 11... Be7 {[%clk 0:02:46.3]} 12. O-O-O {[%clk 0:02:09.7]}
12... b5 {[%clk 0:02:44.3]} 13. Bb3 {[%clk 0:02:09.2]} 13... a5 {[%clk
0:02:42.1]} 14. a4 {[%clk 0:02:04]} 14... bxa4 {[%clk 0:02:33.5]} 15. Bxa4
{[%clk 0:02:02]} 15... Qb6 {[%clk 0:02:34.1]} 16. Qb3 {[%clk 0:01:57.2]} 16...
Ra6 {[%clk 0:02:11.7]} 17. Be5 {[%clk 0:01:49.6]} 17... O-O {[%clk 0:02:08.4]}
18. Qxb6 {[%clk 0:01:49.5]} 18... Rxb6 {[%clk 0:02:07.9]} 19. c4 {[%clk
0:01:43.6]} 19... Rb4 {[%clk 0:02:00.1]} 20. b3 {[%clk 0:01:43.2]} 20... Ne4
{[%clk 0:02:00.1]} 21. Rhe1 {[%clk 0:01:04.1]} 21... Nc3 {[%clk 0:01:54.3]} 22.
c5 {[%clk 0:00:56]} 22... Nxd1 {[%clk 0:01:44]} 23. Rxd1 {[%clk 0:00:56.9]}
23... Rc8 {[%clk 0:01:42.2]} 24. Kc2 {[%clk 0:00:55.8]} 24... Bf6 {[%clk
0:01:40.3]} 25. Kc3 {[%clk 0:00:40.5]} 25... Bxe5 {[%clk 0:01:36.8]} 26. dxe5
{[%clk 0:00:40.4]} 26... Re4 {[%clk 0:01:36.5]} 27. Bxc6 {[%clk 0:00:29.8]}
27... Rxe5 {[%clk 0:01:30.3]} 28. Kc4 {[%clk 0:00:29.9]} 28... h6 {[%clk
0:01:27.6]} 29. Kb5 {[%clk 0:00:29.9]} 29... Rb8+ {[%clk 0:01:24.3]} 30. Ka6
{[%clk 0:00:23.1]} 30... Rxc5 {[%clk 0:01:22.4]} 31. Ba4 {[%clk 0:00:22.7]}
31... Rb4 {[%clk 0:01:07.1]} 32. g3 {[%clk 0:00:19.7]} 32... Rd5 {[%clk
0:01:01.8]} 33. Rc1 {[%clk 0:00:19.1]} 33... f5 {[%clk 0:00:54.8]} 34. f4 {[%clk
0:00:19.1]} 34... g5 {[%clk 0:00:54.2]} 35. Rc6 {[%clk 0:00:16.3]} 35... Kf7
{[%clk 0:00:51]} 36. fxg5 {[%clk 0:00:15.7]} 36... hxg5 {[%clk 0:00:50.7]} 37.
Rc8 {[%clk 0:00:14.8]} 37... f4 {[%clk 0:00:48.7]} 38. gxf4 {[%clk 0:00:14.4]}
38... gxf4 {[%clk 0:00:49.6]} 39. Be8+ {[%clk 0:00:14.3]} 39... Kf6 {[%clk
0:00:49.1]} 40. Bc6 {[%clk 0:00:14]} 40... Rd6 {[%clk 0:00:47.3]} 41. Kxa5
{[%clk 0:00:13.5]} 41... Rxb3 {[%clk 0:00:47.1]} 42. Ba4 {[%clk 0:00:09.8]}
42... Rxh3 {[%clk 0:00:46.2]} 43. Rf8+ {[%clk 0:00:09.7]} 43... Ke5 {[%clk
0:00:45.1]} 44. Kb5 {[%clk 0:00:08.9]} 44... f3 {[%clk 0:00:41.8]} 45. Kc5
{[%clk 0:00:04.4]} 45... Rd2 {[%clk 0:00:39.2]} 46. Bb5 {[%clk 0:00:02.1]} 46...
f2 {[%clk 0:00:37.8]} 47. Ba6 {[%clk 0:00:02.2]} 47... Rc2+ {[%clk 0:00:37]} 48.
Kb4 {[%clk 0:00:02.1]} 48... Rh1 {[%clk 0:00:35]} 0-1

[Event "*** Titled Tuesday Blitz"]
[Site "Chess.com"]
[Date "2021.04.20"]
[Round "1"]
[White "bricolageur"]
[Black "SilviusTiberius"]
[Result "0-1"]
[WhiteElo "2254"]
[BlackElo "2577"]
[TimeControl "180+1"]
[EndTime "10:07:34 PDT"]
[Termination "SilviusTiberius won by checkmate"]

1. e4 {[%clk 0:03:00.9]} 1... e5 {[%clk 0:02:56.6]} 2. Nf3 {[%clk 0:03:01]} 2...
Nc6 {[%clk 0:02:56.2]} 3. Bc4 {[%clk 0:03:01.6]} 3... Bc5 {[%clk 0:02:55.6]} 4.
d3 {[%clk 0:03:01.6]} 4... Nf6 {[%clk 0:02:55]} 5. Bg5 {[%clk 0:03:01.4]} 5...
h6 {[%clk 0:02:53.3]} 6. Bh4 {[%clk 0:03:01.7]} 6... Be7 {[%clk 0:02:50.6]} 7.
Bg3 {[%clk 0:03:01.9]} 7... d6 {[%clk 0:02:50.3]} 8. a4 {[%clk 0:03:01.8]} 8...
O-O {[%clk 0:02:49.5]} 9. Nc3 {[%clk 0:03:00.8]} 9... Bg4 {[%clk 0:02:39.9]} 10.
h3 {[%clk 0:03:00.6]} 10... Be6 {[%clk 0:02:33.5]} 11. O-O {[%clk 0:02:57.9]}
11... Qd7 {[%clk 0:02:03.3]} 12. Re1 {[%clk 0:02:57]} 12... Rae8 {[%clk
0:02:03]} 13. a5 {[%clk 0:02:56.7]} 13... a6 {[%clk 0:02:02.8]} 14. Nd5 {[%clk
0:02:44.9]} 14... Bd8 {[%clk 0:02:02.3]} 15. Bb3 {[%clk 0:02:37.1]} 15... Kh8
{[%clk 0:01:58.5]} 16. c4 {[%clk 0:02:35.7]} 16... Ng8 {[%clk 0:01:48.7]} 17.
Ba4 {[%clk 0:02:09.1]} 17... f5 {[%clk 0:01:45.3]} 18. exf5 {[%clk 0:02:04.3]}
18... Bxf5 {[%clk 0:01:44.3]} 19. d4 {[%clk 0:01:55.3]} 19... e4 {[%clk
0:01:40.3]} 20. Nh2 {[%clk 0:01:34.8]} 20... Qf7 {[%clk 0:01:37.6]} 21. Nf1
{[%clk 0:01:25.9]} 21... Bh7 {[%clk 0:01:20.3]} 22. b4 {[%clk 0:01:16.4]} 22...
Nf6 {[%clk 0:00:57.2]} 23. Nfe3 {[%clk 0:01:14.3]} 23... Nh5 {[%clk 0:00:54.1]}
24. Rf1 {[%clk 0:01:03.4]} 24... Bg5 {[%clk 0:00:51.9]} 25. Bh2 {[%clk
0:00:57.8]} 25... Rc8 {[%clk 0:00:43.2]} 26. Rb1 {[%clk 0:00:40.1]} 26... Nf4
{[%clk 0:00:33.5]} 27. Bxf4 {[%clk 0:00:30.6]} 27... Bxf4 {[%clk 0:00:34.4]} 28.
Nxf4 {[%clk 0:00:27.6]} 28... Qxf4 {[%clk 0:00:35.3]} 29. Qd2 {[%clk 0:00:25.4]}
29... Ne7 {[%clk 0:00:33.5]} 30. b5 {[%clk 0:00:21.9]} 30... Ng6 {[%clk
0:00:25]} 31. bxa6 {[%clk 0:00:21.2]} 31... bxa6 {[%clk 0:00:25.9]} 32. Rb7
{[%clk 0:00:20.6]} 32... Nh4 {[%clk 0:00:25.3]} 33. Bd7 {[%clk 0:00:18.5]} 33...
Rb8 {[%clk 0:00:24.1]} 34. Rxc7 {[%clk 0:00:18.1]} 34... Qg5 {[%clk 0:00:23.4]}
35. Kh1 {[%clk 0:00:15]} 35... Rb3 {[%clk 0:00:22.7]} 36. Rg1 {[%clk 0:00:11.7]}
36... Qf6 {[%clk 0:00:17.3]} 37. Ng4 {[%clk 0:00:09.9]} 37... Qd8 {[%clk
0:00:15.4]} 38. Ra7 {[%clk 0:00:08.9]} 38... Qb8 {[%clk 0:00:15.4]} 39. Rxa6
{[%clk 0:00:09.2]} 39... Rb2 {[%clk 0:00:15.4]} 40. Qe3 {[%clk 0:00:07.6]} 40...
h5 {[%clk 0:00:15.6]} 41. Nh2 {[%clk 0:00:04.8]} 41... Rbxf2 {[%clk 0:00:15.5]}
42. Rb6 {[%clk 0:00:04.4]} 42... Qc7 {[%clk 0:00:14.9]} 43. Bc6 {[%clk
0:00:04.8]} 43... d5 {[%clk 0:00:14.5]} 44. Bxd5 {[%clk 0:00:05]} 44... Nf3
{[%clk 0:00:14.7]} 45. Nxf3 {[%clk 0:00:03.7]} 45... R8xf3 {[%clk 0:00:13.3]}
46. Qg5 {[%clk 0:00:04.5]} 46... Rxh3+ {[%clk 0:00:12.4]} 47. gxh3 {[%clk
0:00:05.4]} 47... Qh2# {[%clk 0:00:12.6]} 0-1

[Event "*** Titled Tuesday Blitz"]
[Site "Chess.com"]
[Date "2021.04.20"]
[Round "1"]
[White "tgpgoat"]
[Black "federicosellitti"]
[Result "0-1"]
[WhiteElo "2279"]
[BlackElo "2595"]
[TimeControl "180+1"]
[EndTime "10:07:36 PDT"]
[Termination "federicosellitti won on time"]

1. d4 {[%clk 0:02:56.9]} 1... d5 {[%clk 0:02:43.9]} 2. c4 {[%clk 0:02:54.1]}
2... Nc6 {[%clk 0:02:43.6]} 3. cxd5 {[%clk 0:02:49.5]} 3... Qxd5 {[%clk
0:02:44.5]} 4. e3 {[%clk 0:02:49.1]} 4... e5 {[%clk 0:02:44]} 5. Nc3 {[%clk
0:02:43.5]} 5... Bb4 {[%clk 0:02:43.5]} 6. dxe5 {[%clk 0:02:43.3]} 6... Qxd1+
{[%clk 0:02:19.2]} 7. Kxd1 {[%clk 0:02:43]} 7... Bxc3 {[%clk 0:02:20.1]} 8. bxc3
{[%clk 0:02:38]} 8... Nxe5 {[%clk 0:02:20.4]} 9. c4 {[%clk 0:02:30]} 9... Be6
{[%clk 0:01:48.3]} 10. Bb2 {[%clk 0:02:28.2]} 10... f6 {[%clk 0:01:48.3]} 11.
Bxe5 {[%clk 0:02:24.6]} 11... fxe5 {[%clk 0:01:49.2]} 12. Nf3 {[%clk 0:02:18.4]}
12... Bg4 {[%clk 0:01:13.4]} 13. Be2 {[%clk 0:02:12.6]} 13... O-O-O+ {[%clk
0:01:12.9]} 14. Kc2 {[%clk 0:02:07.6]} 14... Nf6 {[%clk 0:01:09.7]} 15. Rhd1
{[%clk 0:02:00.2]} 15... Ne4 {[%clk 0:01:04.7]} 16. Rxd8+ {[%clk 0:01:34.4]}
16... Rxd8 {[%clk 0:01:05.6]} 17. Bd3 {[%clk 0:01:34.5]} 17... Nxf2 {[%clk
0:00:52.9]} 18. Bxh7 {[%clk 0:01:32.9]} 18... Rh8 {[%clk 0:00:44.4]} 19. Bg6
{[%clk 0:01:24.3]} 19... Bxf3 {[%clk 0:00:41.9]} 20. gxf3 {[%clk 0:01:21.6]}
20... Rxh2 {[%clk 0:00:42.4]} 21. Kc3 {[%clk 0:01:18.7]} 21... c6 {[%clk
0:00:28]} 22. Bf5+ {[%clk 0:01:13.5]} 22... Kc7 {[%clk 0:00:27.6]} 23. Rg1
{[%clk 0:01:11.7]} 23... Kb6 {[%clk 0:00:21.8]} 24. Rxg7 {[%clk 0:01:07]} 24...
Nd1+ {[%clk 0:00:21.6]} 25. Kb3 {[%clk 0:00:59]} 25... Rb2+ {[%clk 0:00:21.8]}
26. Ka3 {[%clk 0:00:58.9]} 26... Kc5 {[%clk 0:00:20.2]} 27. Rg1 {[%clk
0:00:50.8]} 27... Rd2 {[%clk 0:00:19.9]} 28. Be6 {[%clk 0:00:32.4]} 28... Nxe3
{[%clk 0:00:19.2]} 29. Rg7 {[%clk 0:00:32.2]} 29... Nc2+ {[%clk 0:00:14.6]} 30.
Kb3 {[%clk 0:00:26.5]} 30... Nd4+ {[%clk 0:00:15]} 31. Kc3 {[%clk 0:00:26]}
31... Nxe6 {[%clk 0:00:15.5]} 32. Rxb7 {[%clk 0:00:22.9]} 32... Rxa2 {[%clk
0:00:13.8]} 33. Kb3 {[%clk 0:00:20]} 33... Ra6 {[%clk 0:00:11.5]} 34. Re7 {[%clk
0:00:15.3]} 34... Kd6 {[%clk 0:00:12.1]} 35. Re8 {[%clk 0:00:14.8]} 35... Nd4+
{[%clk 0:00:12.2]} 36. Kc3 {[%clk 0:00:09]} 36... Nxf3 {[%clk 0:00:11.7]} 37.
Rf8 {[%clk 0:00:08]} 37... Nd4 {[%clk 0:00:10.4]} 38. Rf6+ {[%clk 0:00:07.8]}
38... Kc5 {[%clk 0:00:10.7]} 39. Rf8 {[%clk 0:00:01.5]} 39... Ra3+ {[%clk
0:00:11.2]} 40. Kd2 {[%clk 0:00:01.3]} 40... Kxc4 {[%clk 0:00:10.9]} 41. Re8
{[%clk 0:00:01.8]} 41... Rd3+ {[%clk 0:00:11.2]} 42. Kc1 {[%clk 0:00:01.5]}
42... Kc3 {[%clk 0:00:10.9]} 0-1